bitfinex-derivatives/quotes_ETHF0:USTF0_20240818
["timestamp","ask_amount","ask_price","bid_price","bid_amount"]
[1723961085770,2.41824066,2603.1,2603.0,0.95318448]
[1723961086268,2.41824066,2603.1,2603.0,2.29759448]
[1723961086473,2.41824066,2603.1,2603.0,0.95318448]
[1723961086771,2.41824066,2603.1,2602.6,0.00575738]
[1723961086772,4.03371,2602.7,2602.6,0.00575738]
[1723961086972,10.21250254,2602.7,2602.6,0.00575738]
[1723961087173,12.05091,2602.7,2602.6,0.00575738]
[1723961087481,14.05479539,2602.7,2602.6,0.00575738]
[1723961088066,12.05091,2602.7,2602.6,0.00575738]
[1723961088273,14.05424539,2602.7,2602.6,0.00575738]
[1723961090073,13.08017539,2602.7,2602.6,0.00575738]
[1723961090379,11.07684,2602.7,2602.6,0.00575738]
[1723961091260,12.57817577,2602.7,2602.6,0.00575738]
[1723961091673,12.57786842,2602.7,2602.6,0.00575738]
[1723961092076,12.57786842,2602.7,2602.3,0.00451103]
[1723961092077,1.34472,2602.4,2602.3,0.00451103]
[1723961092275,5.51952,2602.4,2602.3,0.00451103]
[1723961092464,7.56954,2602.4,2602.3,0.00451103]
[1723961092974,7.57874,2602.4,2602.3,0.00451103]
[1723961095267,7.64164,2602.4,2602.3,0.00451103]
[1723961096073,11.48404,2602.4,2602.3,0.00451103]
[1723961096302,12.48469884,2602.4,2602.3,0.00451103]
[1723961096803,1.34493,2602.1,2601.6,3.7754]
[1723961097074,1.34505,2601.8,2601.7,4.44475232]
[1723961097271,1.34503,2601.8,2601.7,4.44475232]
[1723961097469,1.6832,2602.0,2601.7,9.63302232]
[1723961097470,1.34501,2601.9,2601.7,9.63302232]
[1723961097779,1.34816948,2601.9,2601.7,5.79448762]
[1723961097972,1.34503,2601.8,2601.7,4.44941762]
[1723961098285,1.34815948,2601.9,2601.7,5.79447762]
[1723961098677,1.34815948,2601.9,2601.7,6.76147762]
[1723961104083,1.34815948,2601.9,2601.8,1.34503]
[1723961104280,1.34815948,2601.9,2601.7,6.76146762]
[1723961104494,1.34815948,2601.9,2601.7,2.3167153]
[1723961105790,0.00315948,2601.9,2601.8,2.31203]
[1723961107785,0.01235948,2601.9,2601.8,2.31203]
[1723961107984,0.07525948,2601.9,2601.8,2.31203]
[1723961108484,0.11175948,2601.9,2601.8,2.31203]
[1723961111875,0.11175948,2601.9,2601.8,12.84653966]
[1723961112078,0.11175948,2601.9,2601.8,17.56124228]
[1723961112986,0.11175948,2601.9,2601.8,12.56124228]
[1723961113300,0.11175948,2601.9,2601.8,11.21621228]
[1723961113879,0.11175948,2601.9,2601.8,14.42401228]
[1723961114281,0.11175948,2601.9,2601.8,14.42401998]
[1723961115683,0.11175948,2601.9,2601.8,11.21621998]
[1723961116990,0.11175948,2601.9,2601.8,11.21623117]
[1723961117786,0.11175948,2601.9,2601.8,10.26336034]
[1723961117996,0.11175948,2601.9,2601.8,11.21623142]
[1723961118180,0.11175948,2601.9,2601.8,10.26336034]
[1723961118380,0.11175948,2601.9,2601.8,11.21624352]
[1723961119388,0.11175948,2601.9,2601.8,10.26336034]
[1723961119592,0.11175948,2601.9,2601.8,11.21624348]
[1723961120086,0.11175948,2601.9,2601.8,14.42404348]
[1723961120280,0.11175948,2601.9,2601.8,11.21624348]
[1723961120884,0.11175948,2601.9,2601.8,11.21625282]
[1723961122695,0.11175948,2601.9,2601.8,10.26336034]
[1723961122891,0.11175948,2601.9,2601.8,11.2162516]
[1723961126393,0.11175948,2601.9,2601.8,12.18462943]
[1723961127004,0.11175948,2601.9,2601.8,10.86996218]
[1723961127188,0.11175948,2601.9,2601.8,12.18463026]
[1723961129187,0.11175948,2601.9,2601.8,13.19099124]
[1723961130293,0.3589,2602.0,2601.9,1.34498]
[1723961130495,0.3589,2602.0,2601.9,4.27182064]
[1723961131288,0.36334178,2602.0,2601.9,4.27182064]
[1723961132295,0.36334178,2602.0,2601.9,8.14593314]
[1723961132595,0.36334178,2602.0,2601.9,7.5392134]
[1723961132794,0.36334178,2602.0,2601.9,6.64147797]
[1723961132995,0.36334178,2602.0,2601.9,5.18773603]
[1723961133194,0.36334178,2602.0,2601.9,6.19428137]
[1723961134099,0.36334178,2602.0,2601.9,7.64803182]
[1723961134295,0.36334178,2602.0,2601.9,7.64802856]
[1723961134495,0.36334178,2602.0,2601.9,7.64803869]
[1723961135194,0.36334178,2602.0,2601.9,5.18774616]
[1723961135396,0.36334178,2602.0,2601.9,6.19436116]
[1723961135694,0.36334178,2602.0,2601.9,4.27277727]
[1723961135899,0.36334178,2602.0,2601.9,6.1944023]
[1723961136598,0.36334178,2602.0,2601.9,5.22609355]
[1723961136802,0.36334178,2602.0,2601.9,6.19444699]
[1723961137303,0.36334178,2602.0,2601.9,7.64820749]
[1723961138088,6.51847178,2602.0,2601.9,6.30322749]
[1723961138288,8.01817551,2602.0,2601.9,0.95287352]
[1723961138596,6.51847178,2602.0,2601.9,0.95287352]
[1723961138902,8.52180717,2602.0,2601.9,0.95287352]
[1723961140000,13.52180717,2602.0,2601.9,0.95287352]
[1723961140303,1.34503,2601.8,2601.7,1.3497453]
[1723961140505,3.31540828,2601.8,2601.7,2.30271845]
[1723961140689,6.15523,2601.8,2601.7,3.27118619]
[1723961140997,8.36666006,2601.8,2601.7,0.95763845]
[1723961141996,8.36666006,2601.8,2601.7,2.30272845]
[1723961142597,6.86163,2601.8,2601.7,1.69607562]
[1723961142796,6.86163,2601.8,2601.7,0.95762193]
[1723961142998,8.36666006,2601.8,2601.7,2.30271193]
[1723961143197,8.36666006,2601.8,2601.7,0.95762193]
[1723961143703,8.36666006,2601.8,2601.7,2.30271193]
[1723961144399,8.36666006,2601.8,2601.7,0.95762193]
[1723961145296,8.36666006,2601.8,2601.7,2.30271193]
[1723961145493,8.36666006,2601.8,2601.7,0.95762193]
[1723961146202,8.36666006,2601.8,2601.7,0.0046653]
[1723961146405,8.36666006,2601.8,2601.7,0.95763624]
[1723961146406,4.52346006,2601.8,2601.7,0.95763624]
[1723961146904,4.52346006,2601.8,2601.7,0.95763935]
[1723961147600,3.01843,2601.8,2601.7,0.95763935]
[1723961147900,4.52346006,2601.8,2601.7,0.95763935]
[1723961148108,4.52346006,2601.8,2601.7,0.95763828]
[1723961148999,4.52346006,2601.8,2601.7,0.95763763]
[1723961149196,4.52346006,2601.8,2601.7,0.95763256]
[1723961149405,4.02150288,2601.8,2601.7,0.95763256]
[1723961149599,4.02150288,2601.8,2601.7,1.92608689]
[1723961149801,4.02150288,2601.8,2601.7,0.95763256]
[1723961149998,4.02150288,2601.8,2601.7,1.92608018]
[1723961150608,4.02150288,2601.8,2601.7,0.95763256]
[1723961150819,4.02150288,2601.8,2601.7,1.9260658]
[1723961151499,7.86470288,2601.8,2601.7,1.9260658]
[1723961152109,7.86470288,2601.8,2601.7,3.2711558]
[1723961152406,4.02150288,2601.8,2601.7,0.95763256]
[1723961152704,7.86470288,2601.8,2601.7,3.27116008]
[1723961152908,7.86470288,2601.8,2601.7,1.92607008]
[1723961153111,7.86470288,2601.8,2601.7,0.0046653]
[1723961153112,4.02150288,2601.8,2601.7,0.0046653]
[1723961153299,4.02150288,2601.8,2601.7,0.9576017]
[1723961153504,7.86470288,2601.8,2601.7,0.9576017]
[1723961153701,4.02150288,2601.8,2601.7,0.9576017]
[1723961155204,4.02150288,2601.8,2601.7,2.3026917]
[1723961155205,7.86470288,2601.8,2601.7,2.3026917]
[1723961156200,4.02150288,2601.8,2601.7,2.3026917]
[1723961156515,7.86470288,2601.8,2601.7,2.3026917]
[1723961157009,7.86470288,2601.8,2601.7,0.9576017]
[1723961157207,4.02150288,2601.8,2601.7,0.9576017]
[1723961157511,4.02150288,2601.8,2601.7,2.3026917]
[1723961157905,3.67320288,2601.8,2601.7,2.3026917]
[1723961159104,3.67320288,2601.8,2601.7,1.3497553]
[1723961159310,3.67320288,2601.8,2601.7,0.95762576]
[1723961159717,3.67320288,2601.8,2601.7,2.30271576]
[1723961159910,3.67320288,2601.8,2601.7,0.95762576]
[1723961160106,3.67320288,2601.8,2601.7,1.3497553]
[1723961160805,3.67320288,2601.8,2601.7,1.95639384]
[1723961161004,3.67320288,2601.8,2601.7,2.3027153]
[1723961161515,3.67320288,2601.8,2601.7,1.95638121]
[1723961161516,2.32817288,2601.8,2601.7,1.95638121]
[1723961161814,2.32817288,2601.8,2601.7,2.30269633]
[1723961162112,2.32817288,2601.8,2601.7,1.69607597]
[1723961162314,2.32817288,2601.8,2601.7,2.30271154]
[1723961162730,2.32817288,2601.8,2601.7,1.3497553]
[1723961162909,2.32817288,2601.8,2601.7,2.30270579]
[1723961163114,3.67320288,2601.8,2601.7,2.30270579]
[1723961163305,3.67320288,2601.8,2601.7,2.30270577]
[1723961167019,3.67320288,2601.8,2601.7,2.30271546]
[1723961167316,3.67320288,2601.8,2601.7,3.27114419]
[1723961167710,3.67320288,2601.8,2601.7,2.30270691]
[1723961168014,3.67320288,2601.8,2601.7,0.95761691]
[1723961169116,3.67320288,2601.8,2601.7,2.30270691]
[1723961171121,3.67320288,2601.8,2601.7,1.69607241]
[1723961171424,3.67320288,2601.8,2601.7,3.27114036]
[1723961171919,4.17516006,2601.8,2601.7,2.30270232]
[1723961172120,4.17516006,2601.8,2601.7,0.95761232]
[1723961172121,8.01836006,2601.8,2601.7,0.95761232]
[1723961173618,8.01836006,2601.8,2601.7,0.0046653]
[1723961173823,8.01836006,2601.8,2601.7,0.95764883]
[1723961174120,8.01836006,2601.8,2601.7,0.95764887]
[1723961175123,8.01836006,2601.8,2601.7,0.95764534]
[1723961175426,4.17516006,2601.8,2601.7,0.95764534]
[1723961175632,4.17516006,2601.8,2601.7,0.35099513]
[1723961175924,4.17516006,2601.8,2601.7,0.95765122]
[1723961176151,2.67013,2601.8,2601.7,0.0046653]
[1723961176314,2.67013,2601.8,2601.7,0.95765167]
[1723961176624,2.67013,2601.8,2601.7,0.95765125]
[1723961179232,4.67346539,2601.8,2601.7,0.95765125]
[1723961180121,4.67346539,2601.8,2601.7,1.9261343]
[1723961180426,2.67013,2601.8,2601.7,1.92612278]
[1723961180629,2.67013,2601.8,2601.7,3.27121278]
[1723961180844,2.67013,2601.8,2601.7,1.92612278]
[1723961181037,4.67346539,2601.8,2601.7,1.92612278]
[1723961184140,2.67013,2601.8,2601.7,2.93273778]
[1723961184639,2.67013,2601.8,2601.7,1.35760456]
[1723961184842,2.67013,2601.8,2601.7,2.93271156]
[1723961185044,2.67013,2601.8,2601.7,2.93271186]
[1723961185534,1.81587436,2601.8,2601.7,8.15128637]
[1723961185744,1.81587436,2601.9,2601.8,1.34503]
[1723961185930,0.36334178,2602.0,2601.9,1.34498]
[1723961186125,0.36334178,2602.0,2601.9,7.65043379]
[1723961186541,0.36334178,2602.0,2601.9,6.19651122]
[1723961186741,0.36334178,2602.0,2601.9,7.65006979]
[1723961187442,0.36334178,2602.0,2601.9,4.27477947]
[1723961187647,0.00444178,2602.0,2601.9,6.1964476]
[1723961187941,0.01294178,2602.0,2601.9,7.65002476]
[1723961188143,0.01294178,2602.0,2601.9,6.1964556]
[1723961188327,0.01294178,2602.0,2601.9,4.27477947]
[1723961188742,1.33304178,2602.0,2601.9,4.27477947]
[1723961189128,1.33304178,2602.0,2601.9,2.31319597]
[1723961189334,1.33304178,2602.0,2601.9,3.26596916]
[1723961189545,1.33304178,2602.0,2601.9,3.26599369]
[1723961190739,1.33304178,2602.0,2601.9,4.2743616]
[1723961191244,2.67797178,2602.0,2601.9,3.26599369]
[1723961192538,2.67797178,2602.0,2601.9,3.2659928]
[1723961193465,2.67797178,2602.0,2601.9,1.34498]
[1723961193649,2.67797178,2602.0,2601.9,3.26594608]
[1723961193948,1.33304178,2602.0,2601.9,3.26594608]
[1723961194145,1.33304178,2602.0,2601.9,4.27431399]
[1723961195037,2.67797178,2602.0,2601.9,4.27431399]
[1723961195239,2.67797178,2602.0,2601.9,3.26594608]
[1723961195647,2.67797178,2602.0,2601.9,4.27431399]
[1723961195944,2.67797178,2602.0,2601.9,3.26594608]
[1723961197141,1.71097178,2602.0,2601.9,3.26594608]
[1723961197339,2.67797178,2602.0,2601.9,3.26594608]
[1723961197745,2.67797178,2602.0,2601.9,3.26594137]
[1723961197941,3.84986067,2602.2,2602.1,2.68976]
[1723961197942,2.50499067,2602.2,2602.1,2.68976]
[1723961198146,1.00572856,2602.3,2602.2,4.03449]
[1723961198339,1.32005738,2602.9,2602.7,1.34457]
[1723961198340,1.50859285,2602.8,2602.7,1.34457]
[1723961198536,1.50859285,2602.8,2602.7,3.26515827]
[1723961198743,2.82741503,2602.9,2602.8,1.34452]
[1723961199043,2.8308251,2602.9,2602.8,2.29714231]
[1723961199246,2.83078523,2602.9,2602.8,2.29714231]
[1723961199440,2.66793745,2602.9,2602.8,0.95262231]
[1723961200345,2.66793745,2602.9,2602.8,0.34629968]
[1723961200654,4.17433734,2602.9,2602.8,0.95262983]
[1723961201035,4.17433734,2602.9,2602.8,0.34629968]
[1723961201245,2.66793745,2602.9,2602.8,0.34629968]
[1723961201969,2.66793745,2602.9,2602.7,1.34457]
[1723961202250,2.66793745,2602.9,2602.8,0.34623529]
[1723961202546,2.66793745,2602.9,2602.8,1.69075464]
[1723961202547,1.32346745,2602.9,2602.8,1.69075464]
[1723961203245,0.35646745,2602.9,2602.8,1.69075464]
[1723961203439,1.32346745,2602.9,2602.8,1.69075464]
[1723961203644,0.00916745,2602.9,2602.8,1.69074636]
[1723961204351,0.00916745,2602.9,2602.8,8.45016891]
[1723961204744,0.00916745,2602.9,2602.8,7.10564891]
[1723961205045,0.00916745,2602.9,2602.8,7.10560954]
[1723961205345,0.00916745,2602.9,2602.8,6.75938318]
[1723961205544,0.00916745,2602.9,2602.8,7.10558467]
[1723961206253,0.00916745,2602.9,2602.8,6.15312]
[1723961206453,0.00916745,2602.9,2602.8,7.4517812]
[1723961206642,0.00916745,2602.9,2602.8,13.04739783]
[1723961206845,0.00916745,2602.9,2602.8,18.04739783]
[1723961208348,0.00916745,2602.9,2602.8,17.41359783]
[1723961208547,0.00916745,2602.9,2602.8,21.25519783]
[1723961210449,0.00916745,2602.9,2602.8,20.30273698]
[1723961210651,0.00916745,2602.9,2602.8,21.25514113]
[1723961210849,0.00916745,2602.9,2602.8,20.64891843]
[1723961211345,0.00916745,2602.9,2602.8,20.30271808]
[1723961213053,0.00916745,2602.9,2602.8,15.30271808]
[1723961214858,0.00916745,2602.9,2602.8,15.30271798]
[1723961215247,0.00916745,2602.9,2602.8,15.30271832]
[1723961216442,0.00032271,2602.9,2602.8,15.30271832]
[1723961216852,0.00032271,2602.9,2602.8,15.90893161]
[1723961217249,0.00032271,2602.9,2602.8,15.30271832]
[1723961217958,0.00032271,2602.9,2602.8,15.30271429]
[1723961218652,0.00032271,2602.9,2602.8,14.95653663]
[1723961218852,0.00032271,2602.9,2602.8,15.30271325]
[1723961219255,0.00032271,2602.9,2602.8,15.30271337]
[1723961221253,0.00032271,2602.9,2602.8,15.68341337]
[1723961223058,0.00032271,2602.9,2602.8,15.33723663]
[1723961223250,0.00032271,2602.9,2602.8,15.68341173]
[1723961227357,0.00032271,2602.9,2602.8,15.68341361]
[1723961227655,0.00032271,2602.9,2602.8,17.02793361]
[1723961228260,0.00032271,2602.9,2602.8,17.02793338]
[1723961228454,0.00032271,2602.9,2602.8,22.02793338]
[1723961228859,0.00032271,2602.9,2602.8,22.63414163]
[1723961231461,0.00032271,2602.9,2602.8,21.68175663]
[1723961231662,0.00032271,2602.9,2602.8,22.63414237]
[1723961232162,0.00032271,2602.9,2602.8,21.68175663]
[1723961232368,0.00032271,2602.9,2602.8,22.63414535]
[1723961236254,0.00032271,2602.9,2602.8,24.60857129]
[1723961236677,0.00032271,2602.9,2602.8,23.03458915]
[1723961236962,0.00032271,2602.9,2602.8,24.60856446]
[1723961237756,0.00032271,2602.9,2602.8,26.52908958]
[1723961237971,0.00032271,2602.9,2602.8,26.5290886]
[1723961238565,0.00032271,2602.9,2602.8,27.03241671]
[1723961239367,0.00575738,2603.1,2603.0,2.68882]
[1723961239664,0.00575738,2603.1,2603.0,5.61117564]
[1723961239874,0.00575738,2603.1,2603.0,21.37029244]
[1723961240257,0.00575738,2603.1,2603.0,23.29079974]
[1723961240458,0.00950483,2603.1,2603.0,24.25856732]
[1723961241168,0.00950483,2603.1,2603.0,22.3384157]
[1723961241363,0.00950483,2603.1,2603.0,24.76554141]
[1723961241868,0.00950483,2603.1,2603.0,27.97334141]
[1723961242374,0.00950483,2603.1,2603.0,26.46335709]
[1723961242764,0.00950483,2603.1,2603.0,27.91623671]
[1723961243166,0.00950483,2603.1,2603.0,29.26064678]
[1723961243463,0.00950483,2603.1,2603.0,31.27395921]
[1723961243766,0.3563,2603.5,2603.4,1.34421]
[1723961244064,0.3563,2603.5,2603.4,4.23132299]
[1723961244665,0.35985146,2603.5,2603.4,4.23132299]
[1723961245266,0.35985146,2603.5,2603.4,10.76054299]
[1723961245567,0.00355146,2603.5,2603.4,34.21500853]
[1723961245772,0.00355146,2603.5,2603.4,38.79590669]
[1723961246069,0.00355146,2603.5,2603.4,35.42291408]
[1723961246366,0.00355146,2603.5,2603.4,38.79530226]
[1723961247163,0.00355146,2603.5,2603.4,34.19262168]
[1723961247574,0.00355146,2603.5,2603.4,34.49827207]
[1723961247776,0.00355146,2603.5,2603.4,38.36105265]
[1723961247978,0.00355146,2603.5,2603.4,37.01684265]
[1723961251284,0.00355146,2603.5,2603.4,37.01688599]
[1723961252282,0.00355146,2603.5,2603.4,34.49825639]
[1723961255078,0.00355146,2603.5,2603.4,29.49825639]
[1723961255873,0.00355146,2603.5,2603.4,31.5075551]
[1723961256281,0.00355146,2603.5,2603.4,31.50761368]
[1723961256490,0.00012505,2603.5,2603.4,30.16340368]
[1723961256702,0.00012505,2603.5,2603.4,28.13512358]
[1723961256875,0.00012505,2603.5,2603.4,29.58765538]
[1723961257078,0.00012505,2603.5,2603.4,27.66751247]
[1723961257279,0.00012505,2603.5,2603.4,31.50779828]
[1723961258188,0.00031069,2603.7,2603.6,1.3441]
[1723961258480,0.00031069,2603.7,2603.6,13.07987791]
[1723961258683,0.00031069,2603.7,2603.6,15.00002081]
[1723961259391,0.00360493,2603.7,2603.6,15.0048803]
[1723961261186,0.00360493,2603.7,2603.6,16.3489803]
[1723961261381,0.00360493,2603.7,2603.6,16.34895987]
[1723961261686,0.00360493,2603.7,2603.6,16.34894078]
[1723961265191,0.00360493,2603.7,2603.6,20.18974078]
[1723961265388,0.37930493,2603.7,2603.6,20.18974078]
[1723961266279,0.37930493,2603.7,2603.6,20.18973547]
[1723961266990,0.37930493,2603.7,2603.6,15.00483547]
[1723961267291,0.37930493,2603.7,2603.6,18.84563547]
[1723961267487,0.37930493,2603.7,2603.6,15.00483547]
[1723961269287,0.37930493,2603.7,2603.6,8.94611447]
[1723961269488,0.37930493,2603.7,2603.6,7.02599597]
[1723961270290,0.37930493,2603.7,2603.6,8.37009597]
[1723961270794,0.37930493,2603.7,2603.6,8.37024525]
[1723961271187,0.37930493,2603.7,2603.6,8.37024523]
[1723961271696,0.37930493,2603.7,2603.6,8.37023482]
[1723961271885,0.37930493,2603.7,2603.6,8.37023479]
[1723961272996,0.37930493,2603.7,2603.6,8.3702359]
[1723961273986,0.37930493,2603.7,2603.6,7.0261359]
[1723961274602,0.37930493,2603.7,2603.6,8.3702359]
[1723961275296,0.37930493,2603.7,2603.6,9.37489379]
[1723961276006,0.37930493,2603.7,2603.6,7.45492567]
[1723961276195,0.37930493,2603.7,2603.6,9.37490189]
[1723961278489,0.37930493,2603.7,2603.6,11.29515776]
[1723961279089,0.37930493,2603.7,2603.6,10.29049987]
[1723961280097,0.37930493,2603.7,2603.6,11.29590854]
[1723961280297,0.37930493,2603.7,2603.6,10.29049987]
[1723961280689,0.37930493,2603.7,2603.6,10.29049232]
[1723961280892,0.37930493,2603.7,2603.6,10.29049234]
[1723961281197,0.37930493,2603.7,2603.6,9.87734465]
[1723961281496,0.00575738,2603.9,2603.7,1.34404]
[1723961281793,0.00575738,2603.9,2603.8,0.967]
[1723961281984,0.00575738,2603.9,2603.8,2.88692021]
[1723961282189,3.84655738,2603.9,2603.8,2.88692021]
[1723961282389,3.85025014,2603.9,2603.8,2.88692021]
[1723961282600,5.19420014,2603.9,2603.8,2.88692021]
[1723961282801,17.21935003,2603.9,2603.8,0.95227864]
[1723961282996,1.34405,2603.7,2603.6,0.00485949]
[1723961283200,2.84964608,2603.7,2603.6,0.61096081]
[1723961283384,11.69044608,2603.7,2603.6,0.61096081]
[1723961283584,12.4959,2603.7,2603.6,0.00485949]
[1723961283899,1.34415,2603.5,2603.4,5.376]
[1723961284192,1.34415,2603.5,2603.4,0.60600881]
[1723961284193,3.81653602,2603.5,2603.4,0.60600881]
[1723961284395,9.00148602,2603.5,2603.4,0.60600881]
[1723961284590,1.34429,2603.3,2603.1,1.97257868]
[1723961284807,1.34429,2603.3,2603.1,1.97686576]
[1723961284995,0.7431,2603.2,2603.1,1.97686576]
[1723961285294,0.7431,2603.2,2603.1,3.55038264]
[1723961285488,4.5847,2603.2,2603.1,3.55005203]
[1723961286402,4.5847,2603.2,2603.1,1.97686576]
[1723961286600,4.5847,2603.2,2603.1,2.5444632]
[1723961287106,4.5847,2603.2,2603.1,0.97128708]
[1723961287299,4.5847,2603.2,2603.1,2.54449402]
[1723961288686,4.5847,2603.2,2603.1,3.5500727]
[1723961289287,4.5847,2603.2,2603.1,2.54444278]
[1723961289997,4.5847,2603.2,2603.1,3.55002146]
[1723961290192,4.5847,2603.2,2603.1,2.54444278]
[1723961290492,0.7431,2603.2,2603.1,2.54444278]
[1723961291206,0.7431,2603.2,2603.1,3.88880278]
[1723961291893,0.7431,2603.2,2603.1,4.89438146]
[1723961292401,0.7431,2603.2,2603.1,4.89434595]
[1723961294006,0.7431,2603.2,2603.1,4.89435788]
[1723961294705,0.7431,2603.2,2603.1,3.8887792]
[1723961294917,0.7431,2603.2,2603.1,2.31564708]
[1723961295106,0.7431,2603.2,2603.1,3.88878653]
[1723961296006,4.5847,2603.2,2603.1,3.88878653]
[1723961296411,4.5847,2603.2,2603.1,2.31564708]
[1723961296610,4.5847,2603.2,2603.1,3.88878104]
[1723961297504,4.5847,2603.2,2603.1,4.89435972]
[1723961298107,0.7431,2603.2,2603.1,4.89435972]
[1723961298309,4.5847,2603.2,2603.1,4.89435972]
[1723961298501,4.5847,2603.2,2603.1,4.8943377]
[1723961298703,4.5847,2603.2,2603.1,4.89433816]
[1723961299004,0.7431,2603.2,2603.1,4.89433816]
[1723961299203,4.5847,2603.2,2603.1,4.89433816]
[1723961299407,0.7431,2603.2,2603.1,4.89433816]
[1723961299804,0.7431,2603.2,2603.1,4.89434525]
[1723961302403,0.7431,2603.2,2603.1,3.88876657]
[1723961302607,0.7431,2603.2,2603.1,4.89434525]
[1723961302912,1.70146,2603.5,2603.3,1.34426]
[1723961302913,0.3573,2603.5,2603.3,1.34426]
[1723961303110,0.7142,2603.4,2603.3,0.967]
[1723961303419,0.7142,2603.4,2603.3,1.57282082]
[1723961304513,4.5558,2603.4,2603.3,1.57282082]
[1723961305811,5.90001,2603.4,2603.3,0.60582082]
[1723961306517,6.86701,2603.4,2603.3,0.60582082]
[1723961308008,6.86701,2603.4,2603.2,1.34429]
[1723961308200,6.86701,2603.4,2603.3,0.60584044]
[1723961308615,6.86701,2603.4,2603.3,0.60584042]
[1723961309504,6.86701,2603.4,2603.3,0.60584904]
[1723961309813,5.90001,2603.4,2603.3,0.60584904]
[1723961310515,4.5558,2603.4,2603.3,1.95010904]
[1723961311020,4.5558,2603.4,2603.3,1.95010859]
[1723961311720,5.90001,2603.4,2603.3,1.95010859]
[1723961312313,5.90001,2603.4,2603.3,1.34426]
[1723961312513,5.90001,2603.4,2603.3,1.95010845]
[1723961313005,4.5558,2603.4,2603.3,1.95010845]
[1723961313205,4.5558,2603.4,2603.3,2.31630845]
[1723961313624,4.5558,2603.4,2603.3,2.31629422]
[1723961314309,4.5558,2603.4,2603.3,1.71046]
[1723961314619,4.5558,2603.4,2603.3,2.31629696]
[1723961315912,4.5558,2603.4,2603.3,1.95009696]
[1723961316524,6.86701,2603.4,2603.3,0.60583696]
[1723961317044,6.86701,2603.4,2603.2,1.34427]
[1723961317223,6.86701,2603.4,2603.3,0.60584891]
[1723961317412,6.86701,2603.4,2603.3,0.60584964]
[1723961318124,5.5228,2603.4,2603.3,1.95010964]
[1723961318317,0.7142,2603.4,2603.3,2.91710964]
[1723961321023,0.7142,2603.4,2603.3,2.31126]
[1723961321221,0.7142,2603.4,2603.3,3.88438959]
[1723961322240,0.7142,2603.4,2603.3,2.31126]
[1723961322420,0.7142,2603.4,2603.3,3.8843691]
[1723961323521,2.21958602,2603.4,2603.3,3.8843691]
[1723961323722,0.7142,2603.4,2603.3,3.8843691]
[1723961324120,2.21958602,2603.4,2603.3,2.9174013]
[1723961324430,6.06118602,2603.4,2603.3,2.9174013]
[1723961325222,7.40539602,2603.4,2603.3,2.57871998]
[1723961325425,6.86701,2603.4,2603.3,1.5731413]
[1723961325725,6.86701,2603.4,2603.3,2.9174013]
[1723961325930,6.86701,2603.4,2603.3,1.34426]
[1723961326129,6.86701,2603.4,2603.3,1.95011096]
[1723961326325,6.86701,2603.4,2603.3,2.91743171]
[1723961327431,8.87429905,2603.4,2603.3,2.91743171]
[1723961327633,7.53008905,2603.4,2603.3,2.91743171]
[1723961328330,7.53008905,2603.4,2603.3,3.92301039]
[1723961328535,5.03269905,2603.4,2603.3,3.92301039]
[1723961328728,8.87429905,2603.4,2603.3,3.92301039]
[1723961329825,8.87429905,2603.4,2603.3,2.34983868]
[1723961330024,8.87429905,2603.4,2603.3,3.92301639]
[1723961333522,8.87429905,2603.4,2603.3,2.57875639]
[1723961334753,8.87429905,2603.4,2603.3,1.97290323]
[1723961334927,8.87429905,2603.4,2603.3,2.57876293]
[1723961335925,8.87429905,2603.4,2603.3,1.00557868]
[1723961336132,8.87429905,2603.4,2603.3,2.93965938]
[1723961336532,8.87429905,2603.4,2603.3,1.36647868]
[1723961336734,8.87429905,2603.4,2603.3,2.93964709]
[1723961336936,8.87429905,2603.4,2603.3,1.36647868]
[1723961337238,8.87429905,2603.4,2603.3,2.93964709]
[1723961338039,3.68848905,2603.4,2603.3,4.28390709]
[1723961338235,3.68848905,2603.4,2603.3,6.20677973]
[1723961338236,3.13534197,2603.4,2603.3,6.20677973]
[1723961338434,3.51255197,2603.4,2603.3,6.20678225]
[1723961338636,2.16834197,2603.4,2603.3,6.20678225]
[1723961338946,3.35149905,2603.4,2603.3,6.70580138]
[1723961339461,3.35149905,2603.4,2603.3,5.13263297]
[1723961339635,3.35149905,2603.4,2603.3,6.70545179]
[1723961340140,3.35149905,2603.4,2603.3,6.70545551]
[1723961340535,3.35149905,2603.4,2603.3,6.70544872]
[1723961341444,3.35149905,2603.4,2603.3,6.70545551]
[1723961341946,2.00728905,2603.4,2603.3,6.70545551]
[1723961342844,2.00728905,2603.4,2603.3,5.13263165]
[1723961343040,2.00728905,2603.4,2603.3,6.70545102]
[1723961344043,2.00728905,2603.4,2603.3,7.67245102]
[1723961344342,2.00728905,2603.5,2603.4,1.34421]
[1723961344541,2.00728905,2603.5,2603.4,6.81242249]
[1723961345740,5.21508905,2603.6,2603.5,1.34415]
[1723961345935,5.21508905,2603.6,2603.5,3.92459544]
[1723961346940,5.21508905,2603.6,2603.5,3.92459333]
[1723961347444,5.21508905,2603.6,2603.5,2.35186402]
[1723961347639,5.21508905,2603.6,2603.5,3.92460212]
[1723961347841,2.00728905,2603.6,2603.5,2.35186402]
[1723961348039,2.00728905,2603.6,2603.5,3.92460232]
[1723961349044,2.00728905,2603.6,2603.5,3.92459598]
[1723961352945,2.00728905,2603.6,2603.5,2.35186402]
[1723961353247,2.00728905,2603.6,2603.5,3.92460419]
[1723961354347,2.00728905,2603.6,2603.5,3.92461321]
[1723961354848,2.00728905,2603.6,2603.5,2.91691438]
[1723961356938,2.00728905,2603.6,2603.5,3.9246284]
[1723961357443,2.00728905,2603.6,2603.5,2.91691438]
[1723961357651,2.00728905,2603.6,2603.5,1.34415]
[1723961357841,2.00728905,2603.6,2603.5,2.91690451]
[1723961358646,2.00728905,2603.6,2603.5,3.92461853]
[1723961358945,0.95436782,2603.6,2603.5,14.35319457]
[1723961359147,0.96381796,2603.9,2603.8,1.344]
[1723961359347,0.00945014,2603.9,2603.8,7.31433333]
[1723961359652,0.00945014,2603.9,2603.8,13.6184148]
[1723961359850,0.00945014,2603.9,2603.8,15.19062014]
[1723961361147,0.00945014,2603.9,2603.8,23.38208013]
[1723961361447,0.00049398,2603.9,2603.8,26.15070829]
[1723961361652,1.082,2604.7,2603.8,30.7273028]
[1723961361854,0.7271,2604.7,2604.5,2.31062]
[1723961362045,0.7271,2604.7,2604.6,0.60539801]
[1723961362255,0.7271,2604.7,2604.5,0.967]
[1723961362541,0.73203389,2604.7,2604.5,2.31063]
[1723961362747,0.73203389,2604.7,2604.6,0.60537113]
[1723961363057,0.73203389,2604.7,2604.5,2.31063]
[1723961363248,2.07557389,2604.7,2604.5,2.31063]
[1723961363838,0.73203389,2604.7,2604.5,2.31063]
[1723961364162,0.00493389,2604.7,2604.6,1.34359]
[1723961364341,0.00575738,2604.9,2604.8,1.34348]
[1723961364545,0.00575738,2604.9,2604.8,2.91580852]
[1723961364855,0.00575738,2604.9,2604.8,10.91102692]
[1723961365343,0.0106099,2604.9,2604.8,10.91102692]